bitfinex/quotes_SOLUSD_20250317
["timestamp","ask_amount","ask_price","bid_price","bid_amount"]
[1742206374466,15.00850888,129.09,129.08,6.66]
[1742206375170,15.00850888,129.09,129.08,312.0]
[1742206377860,7.7759,129.1,129.08,312.0]
[1742206378060,15.00850888,129.09,129.08,312.0]
[1742206378359,15.00850888,129.09,129.07,6.66]
[1742206379461,35.00850888,129.08,129.07,6.66]
[1742206381360,35.00850888,129.08,129.07,318.66]
[1742206381771,15.00850888,129.09,129.07,318.66]
[1742206384281,15.00850888,129.09,129.07,318.55365087]
[1742206384764,15.00850888,129.09,129.07,326.30115087]
[1742206385374,0.03,129.1,129.07,326.30115087]
[1742206385580,0.03,129.1,129.08,18.64964886]
[1742206386357,0.03,129.1,129.09,7.7465]
[1742206387574,0.03,129.1,129.08,26.39654886]
[1742206388478,0.03,129.1,129.09,330.64964886]
[1742206389991,15.03850888,129.1,129.09,318.66]
[1742206390292,15.03850888,129.1,129.09,6.66]
[1742206397674,0.03,129.1,129.09,6.66]
[1742206397874,15.03850888,129.1,129.09,6.66]
[1742206400294,22.78440888,129.1,129.09,6.66]
[1742206401492,22.78440888,129.1,129.06,318.6601]
[1742206401699,15.00850888,129.08,129.06,318.6601]
[1742206402900,15.00850888,129.07,129.06,318.6601]
[1742206404781,7.7759,129.1,129.06,318.6601]
[1742206404782,15.00850888,129.08,129.06,318.6601]
[1742206407180,15.00850888,129.07,129.06,318.6601]
[1742206408503,15.00850888,129.07,129.06,312.0001]
[1742206409002,22.75620888,129.07,129.06,312.0001]
[1742206409189,15.00850888,129.07,129.06,312.0001]
[1742206409497,15.00850888,129.07,129.06,0.0001]
[1742206409685,22.75620888,129.07,129.06,0.0001]
[1742206410584,15.00850888,129.07,129.06,0.0001]
[1742206412586,15.00850888,129.07,129.06,312.0001]
[1742206412900,22.75620888,129.07,129.06,312.0001]
[1742206413717,22.75620888,129.07,129.06,0.0001]
[1742206415287,82.7902444,129.07,129.06,0.0001]
[1742206415491,83.07456754,129.07,129.06,0.0001]
[1742206415890,83.10456754,129.07,129.06,0.0001]
[1742206416099,20.0,129.04,129.0,99.41964886]
[1742206416304,15.00850888,129.02,128.99,0.063]
[1742206416605,15.00850888,129.0,128.99,0.063]
[1742206416782,15.00850888,129.0,128.99,312.063]
[1742206420710,15.00850888,129.0,128.99,319.8155]
[1742206422111,15.00850888,129.01,128.99,319.8155]
[1742206422314,35.00850888,129.01,128.99,319.8155]
[1742206422502,35.00850888,129.01,128.99,7.8155]
[1742206423209,35.00850888,129.01,128.99,0.063]
[1742206423713,15.00850888,129.0,128.99,0.063]
[1742206424911,22.76040888,129.0,128.99,0.063]
[1742206425112,15.00850888,129.0,128.99,0.063]
[1742206430125,20.0,129.02,128.99,0.063]
[1742206430325,15.00850888,129.0,128.99,0.063]
[1742206431497,15.00850888,129.0,128.99,312.063]
[1742206433043,15.00850888,129.0,128.99,319.8155]
[1742206433725,15.00850888,129.0,128.99,7.8155]
[1742206434529,15.00850888,129.0,128.99,6.3155]
[1742206436228,15.00850888,129.0,128.98,14.4959]
[1742206436422,15.00850888,128.99,128.98,14.4959]
[1742206436823,15.00850888,128.99,128.98,326.4959]
[1742206438835,15.00850888,128.99,128.98,6.743]
[1742206440445,15.00850888,128.99,128.98,14.4961]
[1742206442127,15.00850888,129.0,128.98,14.4961]
[1742206442519,15.00850888,129.0,128.98,7.8161]
[1742206442830,35.00850888,129.01,128.98,14.4961]
[1742206443034,20.0,129.01,128.98,14.4961]
[1742206443719,15.00850888,128.99,128.98,6.743]
[1742206444451,35.00850888,128.99,128.98,6.743]
[1742206448133,35.00850888,128.99,128.98,0.063]
[1742206449932,35.00850888,128.99,128.97,313.7076205]
[1742206450122,15.00850888,128.98,128.97,1.7076205]
[1742206450547,20.0,128.99,128.97,1.7076205]
[1742206450846,35.00850888,128.99,128.97,9.4612205]
[1742206452036,15.00850888,128.98,128.97,1.7076205]
[1742206453635,15.00850888,128.98,128.97,9.4613205]
[1742206454642,35.03850888,128.99,128.97,9.4613205]
[1742206454833,15.00850888,128.98,128.97,9.4613205]
[1742206457734,35.03850888,128.99,128.97,321.4613205]
[1742206458141,15.00850888,128.98,128.97,321.4613205]
[1742206458847,35.03850888,128.99,128.97,321.4613205]
[1742206460645,0.03,128.99,128.97,321.4613205]
[1742206461253,15.03850888,128.99,128.97,321.4613205]
[1742206463956,15.03850888,128.99,128.97,313.7076205]
[1742206464153,15.00850888,128.98,128.97,313.7076205]
[1742206464336,15.00850888,128.98,128.97,1.7076205]
[1742206465228,15.00850888,128.98,128.97,8.3876205]
[1742206466352,15.00850888,128.98,128.97,16.1413205]
[1742206467338,15.00850888,128.98,128.97,328.1413205]
[1742206467539,15.00850888,128.98,128.97,321.4613205]
[1742206467852,15.00850888,128.98,128.97,328.1413205]
[1742206470652,15.00850888,128.98,128.97,16.1413205]
[1742206472141,15.03850888,128.99,128.97,16.1413205]
[1742206473537,15.03850888,128.99,128.97,328.1413205]
[1742206475659,0.03,128.99,128.97,328.1413205]
[1742206477938,0.03,128.99,128.97,16.1413205]
[1742206478162,15.03850888,128.99,128.97,16.1413205]
[1742206479639,0.03,128.99,128.97,16.1413205]
[1742206479958,35.03850888,128.99,128.97,16.1413205]
[1742206480960,35.03850888,128.99,128.97,328.1413205]
[1742206483441,0.03,128.99,128.97,328.1413205]
[1742206489059,0.03,128.99,128.98,18.64964886]
[1742206489265,0.03,128.99,128.98,26.40274886]
[1742206493249,0.03,128.99,128.98,338.40274886]
[1742206497265,0.03,128.99,128.98,344.76844886]
[1742206497471,0.03,128.99,128.98,32.76844886]
[1742206500392,0.03,128.99,128.98,344.76844886]
[1742206501146,0.03,128.99,128.98,337.01534886]
[1742206501352,0.03,128.99,128.98,330.64964886]
[1742206501748,0.03,128.99,128.98,337.30964886]
[1742206503375,0.03,128.99,128.98,345.06274886]
[1742206504269,0.03,128.99,128.98,337.30964886]
[1742206505779,0.03,128.99,128.98,330.64964886]
[1742206505967,0.03,128.99,128.98,337.30964886]
[1742206506568,0.03,128.99,128.98,345.06274886]
[1742206507676,0.03,128.99,128.98,337.30964886]
[1742206508065,0.03,128.99,128.98,318.66]
[1742206510462,0.03,128.99,128.98,326.4131]
[1742206510879,0.03,128.99,128.98,319.7531]
[1742206511179,0.03,128.99,128.98,326.4131]
[1742206512183,0.03,128.99,128.98,318.66]
[1742206512370,0.03,128.99,128.98,345.06274886]
[1742206512769,0.03,128.99,128.98,360.07125774]
[1742206513271,0.03,128.99,128.98,345.06274886]
[1742206517580,0.03,128.99,128.98,326.4131]
[1742206518978,0.03,128.99,128.98,318.66]
[1742206520065,15.03850888,128.99,128.98,318.66]
[1742206521264,15.03850888,128.99,128.98,326.4131]
[1742206521486,0.03,128.99,128.98,326.4131]
[1742206522189,0.03,128.99,128.98,33.06274886]
[1742206524789,0.03,128.99,128.98,33.06274886]
[1742206525182,0.03,128.99,128.98,345.06274886]
[1742206526389,0.03,129.06,128.99,1.6444]
[1742206526595,0.03,129.06,129.02,15.00850888]
[1742206526903,0.03,129.06,129.03,6.66]
[1742206527195,15.03850888,129.06,129.03,6.66]
[1742206527782,15.00850888,129.05,129.03,6.66]
[1742206528394,15.00850888,129.05,129.03,14.4096]
[1742206529502,15.00850888,129.05,129.03,326.4096]
[1742206530092,0.03,129.06,129.03,326.4096]
[1742206530296,15.00850888,129.05,129.03,326.4096]
[1742206530876,15.03850888,129.06,129.03,326.4096]
[1742206532596,0.03,129.06,129.03,345.7849]
[1742206534895,0.03,129.06,129.03,318.66]
[1742206534896,15.00850888,129.05,129.03,318.66]
[1742206535077,15.00850888,129.04,129.03,318.66]
[1742206535413,15.03850888,129.05,129.03,318.66]
[1742206537498,15.03850888,129.05,129.03,326.41]
[1742206538894,0.03,129.05,129.03,326.41]
[1742206540984,0.03,129.05,129.03,318.66]
[1742206541504,0.03,129.05,129.03,326.4099]
[1742206542378,0.03,129.05,129.03,341.41840888]
[1742206542781,0.03,129.05,129.03,326.4099]
[1742206543904,15.03850888,129.05,129.03,318.66]
[1742206546098,15.03850888,129.05,129.03,326.4101]
[1742206546402,0.03,129.05,129.03,326.4101]
[1742206547006,0.03,129.05,129.03,14.4101]
[1742206547305,15.00850888,129.04,129.02,7.7505]
[1742206547600,15.00850888,129.04,129.03,6.66]
[1742206548406,15.03850888,129.05,129.03,6.66]
[1742206549508,15.00850888,129.04,129.03,6.66]
[1742206550806,0.03,129.05,129.03,6.66]
[1742206551307,15.03850888,129.05,129.03,6.66]
[1742206552087,15.00850888,129.04,129.03,6.66]
[1742206552807,15.00850888,129.04,129.01,80.77]
[1742206553009,15.00850888,129.03,129.02,6.66]
[1742206553393,15.00850888,129.04,129.02,6.66]
[1742206553784,15.00850888,129.04,129.02,14.4105]
[1742206554091,15.03850888,129.05,129.02,326.4105]
[1742206554285,20.03,129.05,129.02,326.4105]
[1742206554507,35.03850888,129.05,129.02,326.4105]
[1742206555422,0.03,129.05,129.02,326.4105]
[1742206555886,0.03,129.05,129.02,14.4105]
[1742206559004,0.03,129.05,129.03,312.0]
[1742206559488,0.03,129.05,129.03,319.7495]
[1742206567213,15.03850888,129.05,129.03,319.7495]
[1742206567412,15.00850888,129.04,129.03,312.0]
[1742206567616,15.03850888,129.05,129.03,319.7501]
[1742206568929,15.03850888,129.05,129.03,312.0]
[1742206569421,15.00850888,129.04,129.03,312.0]
[1742206569933,15.03850888,129.05,129.03,312.0]
[1742206570497,15.03850888,129.05,129.02,14.4106]
[1742206570699,0.03,129.05,129.02,14.4106]
[1742206572820,0.03,129.05,129.02,33.7874]
[1742206573528,0.03,129.05,129.03,312.0]
[1742206574129,0.03,129.05,129.04,7.7495]
[1742206576229,0.03,129.05,129.03,7.7501]
[1742206577322,0.03,129.05,129.04,312.0]
[1742206577505,0.03,129.05,129.04,319.7495]
[1742206577944,0.03,129.05,129.04,22.75800888]
[1742206578219,0.03,129.06,129.05,6.3599]
[1742206578420,0.03,129.06,129.05,21.36840888]
[1742206578612,0.03,129.06,129.05,40.30238088]
[1742206578819,0.0001,129.06,129.05,40.30238088]
[1742206579240,0.0001,129.07,129.06,18.933972]
[1742206579445,0.0001,129.07,129.06,40.60248088]
[1742206579766,0.0001,129.07,129.06,48.35078088]
[1742206580469,0.0001,129.07,129.06,14.4083]
[1742206580927,0.0001,129.07,129.06,326.4083]
[1742206581639,0.0001,129.07,129.06,341.41680888]
[1742206583455,0.0001,129.07,129.06,360.35078088]
[1742206584153,0.0001,129.07,129.06,441.12078088]
[1742206591353,0.0001,129.07,129.06,440.62078088]
[1742206596843,0.0001,129.07,129.06,440.62078088]
[1742206598752,0.0001,129.07,129.06,440.12078088]
[1742206605488,0.0001,129.07,129.06,406.1783]
[1742206605872,0.0001,129.07,129.06,400.5183]
[1742206606356,0.0001,129.07,129.06,407.2413]
[1742206611673,0.0001,129.07,129.06,312.063]
[1742206611674,15.00860888,129.07,129.06,312.063]
[1742206611858,15.00860888,129.07,129.06,318.723]
[1742206612472,15.00860888,129.07,129.06,0.063]
[1742206612654,15.00860888,129.07,129.06,6.723]
[1742206612852,15.00860888,129.07,129.06,0.063]
[1742206615387,15.00860888,129.07,129.06,312.063]
[1742206617479,15.00860888,129.07,129.06,318.723]
[1742206627486,0.0001,129.07,129.06,326.4713]
[1742206627688,0.0001,129.07,129.06,14.4713]
[1742206627870,0.0001,129.07,129.06,29.47980888]
[1742206628064,0.0001,129.07,129.06,48.41378088]
[1742206628882,0.0001,129.07,129.06,129.18378088]
[1742206629075,0.0001,129.07,129.06,135.25798088]
[1742206629274,0.0001,129.07,129.06,195.2920164]
[1742206630667,0.03,129.1,129.07,18.933972]
[1742206630896,0.03,129.1,129.09,33.94248088]
[1742206632469,0.03,129.1,129.09,41.68898088]
[1742206632986,0.03,129.12,129.1,20.578572]
[1742206633304,0.03,129.12,129.11,47.06028088]
[1742206633909,0.03,129.12,129.11,127.83028088]
[1742206634068,0.03,129.15,129.13,15.00850888]
[1742206634272,0.03,129.15,129.14,312.0]
[1742206634472,0.03,129.15,129.14,319.7435]
[1742206635176,0.03,129.15,129.14,103.52200888]
[1742206635369,0.03,129.15,129.14,88.5135]
[1742206637093,0.03,129.15,129.14,103.52200888]
[1742206638101,0.03,129.15,129.14,415.52200888]
[1742206641984,0.03,129.15,129.14,434.45598088]
[1742206642697,0.03,129.15,129.14,353.68598088]
[1742206642888,0.03,129.15,129.14,355.19668088]
[1742206643097,0.03,129.15,129.14,435.99668088]
[1742206643283,0.03,129.17,129.14,455.35548088]
[1742206643485,0.03,129.17,129.16,33.94248088]
[1742206644694,0.03,129.17,129.16,41.68478088]
[1742206646681,0.03,129.17,129.16,353.68478088]
[1742206648592,0.03,129.17,129.16,434.48478088]
[1742206649903,0.03,129.17,129.16,400.5423]
[1742206652114,15.03850888,129.17,129.16,318.64]
[1742206652321,15.03850888,129.17,129.16,6.64]
[1742206654115,0.03,129.17,129.16,6.64]
[1742206654613,15.03850888,129.17,129.16,6.64]
[1742206655304,15.03850888,129.17,129.16,318.64]
[1742206655921,15.03850888,129.17,129.16,6.64]
[1742206658115,22.78020888,129.17,129.15,6.64]
[1742206658302,15.00850888,129.16,129.15,6.64]
[1742206658500,15.00850888,129.16,129.12,7.8076]
[1742206658691,15.00850888,129.15,129.13,6.64]
[1742206658891,15.00850888,129.15,129.14,312.0]
[1742206660898,9.50850888,129.15,129.14,312.0]
[1742206661298,15.00850888,129.16,129.14,312.0]
[1742206661498,15.00850888,129.16,129.14,319.7435]
[1742206662734,15.03850888,129.17,129.14,319.7435]
[1742206663704,0.03,129.17,129.14,319.7435]
[1742206664717,35.03850888,129.17,129.14,319.7435]
[1742206670708,35.03850888,129.17,129.14,319.7435]
[1742206678544,75.0425444,129.13,129.12,0.063]
[1742206678737,20.0,129.1,129.07,312.0]
[1742206678941,15.00850888,129.08,129.06,6.703]
[1742206679124,15.00850888,129.07,129.06,6.703]
[1742206679345,15.00850888,129.07,129.06,0.063]
[1742206682019,15.00850888,129.07,129.06,312.063]
[1742206682812,15.00850888,129.07,129.06,0.063]
[1742206683012,22.75620888,129.07,129.06,0.063]
[1742206685346,15.00850888,129.07,129.06,0.063]
[1742206686125,22.75620888,129.07,129.06,0.063]
[1742206687045,15.00850888,129.07,129.06,0.063]
[1742206694251,13.98638581,129.07,129.06,0.063]
[1742206698387,15.00850888,129.08,129.06,0.063]
[1742206698558,15.00850888,129.1,129.06,0.063]
[1742206698740,15.00850888,129.09,129.06,0.063]
[1742206700349,15.03850888,129.09,129.06,0.063]
[1742206701159,15.00850888,129.07,129.06,0.063]
[1742206701459,15.00850888,129.07,129.06,312.063]
[1742206701962,15.00850888,129.07,129.06,0.063]
[1742206704530,22.75620888,129.07,129.06,0.063]
[1742206709766,15.00850888,129.07,129.06,0.063]
[1742206710608,22.75620888,129.07,129.06,0.063]
[1742206714643,20.0,129.04,129.03,0.063]
[1742206714842,35.00850888,129.04,129.03,0.063]
[1742206715604,42.75800888,129.04,129.03,0.063]
[1742206715960,61.69198088,129.04,129.03,0.063]
[1742206729889,35.00850888,129.04,129.03,0.063]
[1742206731168,42.75800888,129.04,129.03,0.063]
[1742206732684,35.00850888,129.04,129.03,0.063]
[1742206735465,15.03850888,129.06,129.03,6.723]
[1742206736181,35.03850888,129.06,129.03,6.723]
[1742206736371,0.03,129.06,129.03,6.723]
[1742206736679,0.03,129.06,129.03,21.73150888]
[1742206736858,0.03,129.06,129.05,7.7489]
[1742206738183,0.03,129.06,129.05,319.7489]
[1742206738371,0.03,129.06,129.05,342.68990888]
[1742206738573,0.03,129.06,129.05,30.68990888]
[1742206740566,0.03,129.06,129.05,15.6814]
[1742206740977,0.03,129.06,129.05,7.9325]
[1742206741184,0.03,129.06,129.05,14.5925]
[1742206741589,0.03,129.06,129.05,334.3414]
[1742206747570,0.03,129.06,129.05,334.4044]
[1742206754104,0.03,129.06,129.05,349.41290888]
[1742206754790,0.03,129.06,129.05,56.34688088]
[1742206755095,0.62067822,129.07,129.06,18.933972]
[1742206755276,0.62067822,129.07,129.06,114.74248088]
[1742206755790,0.62067822,129.07,129.06,129.75098976]
[1742206756090,0.62067822,129.07,129.06,137.49928976]
[1742206756797,0.62067822,129.07,129.06,122.49078088]
[1742206757688,0.62067822,129.07,129.06,434.49078088]
[1742206758983,0.03,129.07,129.06,434.49078088]
[1742206761702,0.0001,129.07,129.06,494.5248164]
[1742206764404,0.0001,129.07,129.06,434.49078088]
[1742206765201,0.0001,129.07,129.06,494.5248164]
[1742206767094,0.0001,129.07,129.06,434.49078088]
[1742206769899,0.0001,129.07,129.06,441.13078088]
[1742206771560,0.0001,129.07,129.06,441.19378088]
[1742206772917,0.0001,129.07,129.06,129.19378088]
[1742206774006,0.0001,129.07,129.06,122.55378088]
[1742206774212,0.0001,129.07,129.06,129.19378088]
[1742206775798,0.03,129.17,129.14,0.28432314]
[1742206776109,0.03,129.17,129.16,345.94248088]
[1742206776503,0.03,129.17,129.16,327.00850888]
[1742206777029,0.03,129.17,129.16,334.98650888]
[1742206777609,0.03,129.17,129.16,327.7203]
[1742206777906,0.03,129.17,129.16,342.72880888]
[1742206781419,0.03,129.17,129.16,336.31700888]
[1742206783025,0.03,129.17,129.16,334.75080888]
[1742206784304,0.03,129.17,129.16,319.7423]
[1742206784727,0.03,129.17,129.16,334.75080888]
[1742206787025,0.03,129.17,129.16,319.7423]
[1742206787202,0.03,129.17,129.16,14.3823]
[1742206787408,0.03,129.17,129.16,7.7423]
[1742206787613,0.03,129.17,129.16,29.39080888]
[1742206788622,0.03,129.17,129.16,22.75080888]
[1742206788824,0.03,129.17,129.16,28.80013066]
[1742206789024,0.03,129.17,129.16,13.79162178]
[1742206789530,0.03,129.17,129.16,28.80013066]
[1742206790126,0.03,129.17,129.16,340.80013066]
[1742206790912,0.03,129.17,129.16,325.79162178]
[1742206794633,0.03,129.17,129.16,340.80013066]
[1742206795735,0.03,129.17,129.16,325.79162178]
[1742206796137,0.03,129.17,129.16,13.79162178]
[1742206797546,0.03,129.17,129.16,7.15162178]
[1742206797825,0.03,129.17,129.16,13.79162178]
[1742206799235,0.03,129.17,129.16,325.79162178]
[1742206804160,0.03,129.17,129.16,13.79162178]
[1742206807044,0.03,129.17,129.16,325.85462178]
[1742206808746,0.03,129.17,129.16,28.86313066]
[1742206809343,0.03,129.17,129.16,13.85462178]
[1742206811828,0.03,129.17,129.16,340.86313066]
[1742206812140,0.03,129.17,129.16,325.85462178]
[1742206812954,0.03,129.17,129.16,340.86313066]
[1742206816142,0.03,129.17,129.16,312.063]
[1742206816332,15.03850888,129.17,129.16,6.703]
[1742206819345,15.03850888,129.17,129.16,318.703]
[1742206819854,0.03,129.17,129.16,318.703]
[1742206826953,0.03,129.17,129.16,0.063]
[1742206826954,15.03850888,129.17,129.16,0.063]
[1742206828359,22.78020888,129.17,129.16,0.063]
[1742206838573,41.71418088,129.17,129.16,0.063]
[1742206839661,20.0,129.14,129.11,6.64]
[1742206839844,15.00850888,129.12,129.11,6.64]
[1742206840574,15.00850888,129.12,129.09,15.4969]
[1742206840747,15.00850888,129.12,129.1,6.64]
[1742206841664,15.00850888,129.12,129.1,318.64]
[1742206844573,20.0,129.14,129.1,341.39410888]
[1742206844777,7.7719,129.17,129.11,15.00850888]
[1742206844949,15.00850888,129.16,129.11,15.00850888]
[1742206845583,15.00850888,129.16,129.12,7.7447]
[1742206845756,15.00850888,129.15,129.12,7.7447]
[1742206847370,15.00850888,129.16,129.12,7.7447]
[1742206847870,15.00850888,129.16,129.12,319.7447]
[1742206850573,15.03850888,129.17,129.12,319.7447]
[1742206853182,15.00850888,129.16,129.12,319.8077]
[1742206858564,0.03,129.17,129.12,354.17800888]
[1742206858758,0.03,129.17,129.13,8.2599]
[1742206858959,0.03,129.17,129.14,6.64]
[1742206859561,0.03,129.17,129.15,7.7429]
[1742206859955,15.03850888,129.17,129.15,7.7429]
[1742206860655,0.03,129.17,129.15,7.7429]
[1742206860874,0.03,129.17,129.15,22.75140888]
[1742206861552,0.03,129.17,129.15,7.7429]
[1742206861761,0.03,129.17,129.16,327.00850888]
[1742206862063,0.03,129.17,129.16,334.93480888]
[1742206862469,0.03,129.17,129.16,319.9263]
[1742206864078,0.03,129.17,129.16,342.67710888]
[1742206864282,0.03,129.17,129.16,327.6686]
[1742206866569,0.03,129.17,129.16,334.3086]
[1742206867159,0.03,129.17,129.16,318.64]
[1742206867567,0.03,129.17,129.16,326.3823]
[1742206867865,0.03,129.17,129.16,14.3823]
[1742206869892,0.03,129.17,129.16,29.39080888]
[1742206870271,0.0001,129.17,129.16,137.20738088]
[1742206870763,0.0001,129.18,129.17,33.94248088]
[1742206870964,0.0001,129.18,129.17,115.90317874]
[1742206872586,0.0001,129.18,129.17,123.64487874]
[1742206873266,0.0001,129.18,129.17,107.475672]
[1742206873583,0.0001,129.18,129.17,122.48418088]
[1742206874274,0.0001,129.18,129.17,434.48418088]
[1742206876374,0.0001,129.19,129.17,434.48418088]
[1742206876575,0.0001,129.19,129.18,16.16904455]
[1742206877186,0.0001,129.19,129.18,23.91014455]
[1742206878273,0.0001,129.19,129.18,31.97834455]
[1742206879500,0.0001,129.19,129.18,343.97834455]
[1742206879697,0.0001,129.19,129.18,342.81780888]
[1742206880274,0.0001,129.19,129.18,423.61780888]
[1742206881082,0.0001,129.2,129.19,15.00850888]
[1742206881488,0.0001,129.2,129.19,16.16895791]
[1742206882809,0.0001,129.2,129.19,23.90945791]
[1742206883214,0.0001,129.2,129.19,42.84342991]
[1742206884300,0.0001,129.2,129.19,354.84342991]
[1742206884504,0.0001,129.2,129.19,353.68298088]
[1742206886314,0.0001,129.2,129.19,434.48298088]
[1742206890735,0.0001,129.2,129.19,438.44151621]
[1742206892013,0.03,129.24,129.22,38.933972]
[1742206892014,0.0001,129.24,129.22,38.933972]
[1742206892214,0.0001,129.24,129.23,40.58248088]
[1742206893814,0.0001,129.24,129.23,48.32058088]
[1742206894203,0.0001,129.24,129.23,129.12058088]
[1742206895112,0.0001,129.24,129.23,441.12058088]
[1742206900600,0.0001,129.24,129.23,426.112072]
[1742206900800,0.0001,129.24,129.23,407.1781]
[1742206901023,0.0001,129.24,129.23,6.64]
[1742206901919,0.0001,129.24,129.23,14.3781]
[1742206902419,0.0001,129.24,129.23,6.64]
[1742206902807,0.0001,129.24,129.23,14.3781]
[1742206904015,0.0001,129.24,129.23,326.3781]
[1742206904923,0.0001,129.24,129.23,318.64]
[1742206906020,0.0001,129.24,129.23,326.3781]
[1742206907723,0.0001,129.24,129.23,318.64]
[1742206908728,0.0001,129.24,129.23,326.3781]
[1742206911312,0.0001,129.24,129.23,318.64]
[1742206912823,0.0001,129.24,129.23,6.64]
[1742206913132,15.00860888,129.24,129.21,7.7391]
[1742206913427,15.00860888,129.24,129.22,6.64]
[1742206913935,0.0001,129.24,129.22,6.64]
[1742206915831,0.0001,129.24,129.22,318.64]
[1742206916418,0.0001,129.24,129.22,326.3785]
[1742206916932,0.0001,129.24,129.22,318.64]
[1742206917137,0.0001,129.24,129.22,326.3786]
[1742206920417,0.0001,129.24,129.22,14.3786]
[1742206922344,0.0001,129.24,129.22,14.4416]
[1742206923428,0.0001,129.24,129.22,326.4416]
[1742206927930,0.0001,129.24,129.22,14.4416]
[1742206930945,0.0001,129.24,129.22,326.4416]
[1742206931941,0.0001,129.24,129.22,14.4416]
[1742206934845,0.0001,129.24,129.22,326.4416]
[1742206935548,0.0001,129.24,129.22,14.4416]
[1742206938353,0.0001,129.24,129.22,326.4416]
[1742206939532,0.0001,129.24,129.22,14.4416]
[1742206946355,0.0001,129.24,129.22,14.4416]
[1742206947862,0.0001,129.24,129.22,110.25010888]
[1742206948160,0.0001,129.24,129.23,15.00850888]
[1742206948346,0.0001,129.24,129.23,41.99368088]
[1742206950053,0.0001,129.24,129.23,361.73178088]
[1742206952456,0.0001,129.24,129.23,442.53178088]
[1742206954256,0.0001,129.24,129.23,130.53178088]
[1742206957157,0.0001,129.24,129.23,96.5893]
[1742206957461,0.0001,129.24,129.23,88.5381]
[1742206959557,0.0001,129.24,129.23,103.54660888]
[1742206960368,0.0001,129.24,129.23,88.5381]
[1742206962043,0.0001,129.24,129.23,6.64]
[1742206962857,0.0001,129.24,129.22,7.8015]
[1742206962858,15.00860888,129.24,129.22,7.8015]
[1742206963059,15.00850888,129.23,129.22,0.063]
[1742206963373,35.00860888,129.24,129.22,6.703]
[1742206963567,20.0001,129.24,129.22,14.4417]
[1742206964447,20.0001,129.24,129.22,6.703]
[1742206964448,15.00850888,129.23,129.22,6.703]
[1742206965655,15.00850888,129.23,129.22,0.063]
[1742206965849,15.00850888,129.23,129.22,6.703]
[1742206969453,15.00850888,129.23,129.22,6.62323815]
[1742206971168,35.00860888,129.24,129.22,6.62323815]
[1742206972566,15.00850888,129.23,129.22,6.62323815]
[1742206977177,35.00860888,129.24,129.22,6.62323815]
[1742206978278,15.00850888,129.23,129.22,6.62323815]
[1742206979379,35.00860888,129.24,129.22,6.62323815]
[1742206980877,35.00860888,129.24,129.22,6.68623815]
[1742206981479,15.00850888,129.23,129.22,6.68623815]
[1742206986380,35.00860888,129.24,129.22,14.42493815]
[1742206989469,35.00860888,129.24,129.22,326.42493815]
[1742206989790,35.00860888,129.24,129.22,14.42493815]
[1742206990274,20.0001,129.24,129.22,14.42493815]
[1742206991484,35.00860888,129.24,129.22,14.42493815]
[1742206992060,20.0001,129.24,129.22,14.42493815]
[1742206992469,0.0001,129.24,129.22,29.43344703]
[1742206992664,0.0001,129.24,129.23,327.00850888]
[1742206992874,0.0001,129.24,129.23,15.00850888]
[1742206993887,0.0001,129.24,129.23,35.10276562]
[1742206994090,0.0001,129.27,129.24,26.671472]
[1742206994385,0.0001,129.27,129.26,41.80438088]
[1742206994577,0.0001,129.29,129.28,20.0]
[1742206994779,0.0001,129.29,129.28,33.94248088]
[1742206994982,0.0001,129.3,129.29,18.933972]
[1742206995170,15.00850888,129.38,129.29,175.93603411]
[1742206995374,15.00850888,129.39,129.34,15.00850888]
[1742206995577,15.00850888,129.39,129.35,6.78]